Cogmind - Beta 13 *** ADVENTURER MODE // 2024.05.27 @ 17:49:14 Player: Blade Result: Self-destructed Performance ------------- Evolutions (1) 500 Regions Visited (2) 400 Robots Destroyed (26) 130 Value Destroyed (621) 621 Prototype IDs (1) 20 Alien Tech Used (0) 0 Bonus (0) 0 TOTAL SCORE: 1671 Bonus ------- None Cogmind --------- Core Integrity 139/400 Matter 300/300 Energy 100/100 System Corruption 0% Temperature Cool (0) Movement Walking (120) Location -9/Materials Parts ------- > --- POWER (1) -------- (None) > --- PROPULSION (4) --- Aluminum Leg Aluminum Leg > --- UTILITY (2) ------ Medium Storage Unit Utility Shielding > --- WEAPON (2) ------- (None) > --- INVENTORY (10) --- Ion Engine Wheel Flight Unit Flight Unit Flight Unit Weight Redist. System Sensor Array Terrain Scanner Terrain Scan Processor Light Armor Plating Peak State ------------ > --- POWER ------------ Light Nuclear Core > --- PROPULSION ------- Light Treads Light Treads Aluminum Leg Aluminum Leg > --- UTILITY ---------- Medium Storage Unit Light Armor Plating > --- WEAPON ----------- Assault Rifle Improved Assault Rifle > --- INVENTORY -------- Ion Engine Wheel Flight Unit Flight Unit Weight Redist. System Sensor Array Terrain Scanner Terrain Scan Processor [Rating: 14] Favorites ----------- Power Light Nuclear Core Engine Ion Engine Power Core Light Nuclear Core Propulsion Aluminum Leg Treads Light Treads Leg Aluminum Leg Utility Medium Storage Unit Storage Medium Storage Unit Protection Utility Shielding Weapon Assault Rifle Energy Gun EM Pulse Gun Ballistic Gun Assault Rifle Build | -11 -10 -9 ------- Run | Yrd Mat Mat Slots Evolved 2 | . . 2 Power . | . . . Propulsion 2 | . . 2 Utility . | . . . Weapon . | . . . Parts Attached 13 | . 2 11 Power 2 | . 1 1 Engine . | . . . Core 2 | . 1 1 Reactor . | . . . Propulsion 4 | . . 4 Treads 2 | . . 2 Leg 2 | . . 2 Wheel . | . . . Hover . | . . . Flight . | . . . Utility 3 | . 1 2 Device . | . . . Storage 1 | . 1 . Processor . | . . . Hackware . | . . . Protection 2 | . . 2 Artifact . | . . . Weapon 4 | . . 4 Energy Gun . | . . . Energy Cannon . | . . . Ballistic Gun 4 | . . 4 Ballistic Cannon . | . . . Launcher . | . . . Special Weapon . | . . . Impact Weapon . | . . . Slashing Weapon . | . . . Piercing Weapon . | . . . Special Melee Weapon . | . . . Unidentified Prototypes 1 | . . 1 Parts Lost 7 | . . 7 Power 2 | . . 2 Propulsion 2 | . . 2 Utility . | . . . Weapon 3 | . . 3 Highest Loss Streak 2 | . . 2 To Critical Strikes . | . . . Average Slot Usage (%) 78 | . 92 73 Engine 3 | . 11 . Core 7 | . 2 10 Treads 4 | . . 6 Leg 21 | . 28 18 Storage 13 | . 21 11 Protection 5 | . . 7 Energy Gun 4 | . 14 . Ballistic Gun 17 | . 14 18 Naked Turns . | . . . Heaviest Build 24 | 14 24 23 Greatest Support 40 | 20 20 40 Greatest Overweight (x) 6 | . 1 6 Average Overweight (x) . | . . . Largest Inventory Capacity 10 | 8 10 10 Average Capacity 9 | 8 9 10 Most Carried 10 | 6 10 10 Average Carried 9 | 6 8 9 Final Capacity 10 | 8 10 10 Final Carried 10 | 6 10 10 Class Distribution -------------------- 87% | Mutant 12% | Scavenger-Mutant Dominant Class ---------------- Mutant | -10/Materials Mutant | -9/Materials Resources | -11 -10 -9 ----------- Run | Yrd Mat Mat Matter Collected 572 | 184 46 342 Remotely . | . . . Salvage Created 930 | . 215 715 Parts 62 | . 14 48 Haulers Intercepted 3 | . 1 2 Recyclers Shooed . | . . . Parts Field Recycled . | . . . Retrieved Matter . | . . . Parts Self-Destructed . | . . . Prevented . | . . . Kills | -11 -10 -9 ------- Run | Yrd Mat Mat Combat Hostiles Destroyed 22 | . 5 17 Guns 21 | . 5 16 Classes Destroyed 5 | . 3 2 Hauler 3 | . 1 2 Mechanic 1 | . . 1 Swarmer 9 | . 3 6 Grunt 9 | . 2 7 Sentry 4 | . . 4 Best Kill Streak 5 | . 3 5 Combat Bots Only 4 | . 3 4 Max Kills in Single Turn 1 | . 1 1 Gunslinging . | . . . Exploded . | . . . Melee . | . . . Uniques/NPCs Destroyed . | . . . Combat | -11 -10 -9 -------- Run | Yrd Mat Mat Hostile Shots Fired 197 | . 31 166 Missed 53 | . 8 45 Damage Taken 1192 | . 165 1027 Core 290 | . 29 261 Absorbed by Shields . | . . . Redirected to Shielding 12 | . . 12 Ignored by Resistances 364 | . 51 313 Core Remaining (%) 94 | 100 88 . Volleys Fired 78 | . 11 67 Largest 2 | . 2 2 Hottest 60 | . 60 43 Shots Fired 129 | . 22 107 Gun 129 | . 22 107 Cannon . | . . . Launcher . | . . . Special . | . . . Kinetic 118 | . 11 107 Thermal . | . . . Explosive . | . . . Electromagnetic 11 | . 11 . Robot Hit Streak 29 | . 9 29 Robot Miss Streak 1 | . 1 1 Penetration Max . | . . . Secondary Targets 1 | . . 1 Max Gunslinging Chain 1 | . . 1 Shots Hit Robots 108 | . 16 92 Core Hits 45 | . 10 35 Critical Kills 1 | . . 1 Critical Parts Destroyed . | . . . Critical Strikes 1 | . . 1 Destroy 1 | . . 1 Melee Attacks . | . . . Impact . | . . . Slashing . | . . . Piercing . | . . . Sneak Attacks . | . . . Combat Hostiles . | . . . Follow-up Attacks . | . . . Damage Inflicted 1433 | . 205 1228 Guns 1384 | . 197 1187 Cannons . | . . . Explosions . | . . . Melee . | . . . Ramming 49 | . 8 41 Kinetic 1264 | . 77 1187 Thermal . | . . . Explosive . | . . . Electromagnetic 120 | . 120 . Impact . | . . . Slashing . | . . . Piercing . | . . . Highest Corruption . | . . . Average Corruption . | . . . Corruption Purged . | . . . Corruption Blocked . | . . . Overload Shots . | . . . Overflow Damage 1 | . . 1 Projectiles . | . . . Explosions . | . . . Melee 1 | . . 1 Knockbacks . | . . . Impact . | . . . Kinetic . | . . . Secondary . | . . . Self-Inflicted Damage . | . . . Shots . | . . . Rammed . | . . . Targets Rammed 16 | . 1 15 Kicked 16 | . 1 15 Crushed . | . . . Highest Temperature 24 | . 24 9 Average Temperature 8 | . 17 3 Received Heat Transfer 429 | . 24 405 Siege Activations . | . . . Robots Corrupted . | . . . Combat Hostiles . | . . . Parts Fried . | . . . Impact Corruptions 1 | . . 1 Robots Melted . | . . . Combat Hostiles . | . . . Parts Melted . | . . . Heat Transferred . | . . . Parts Sabotaged . | . . . Parts Stolen . | . . . Parts Stripped . | . . . Power Chain Reactions . | . . . Alert | -11 -10 -9 ------- Run | Yrd Mat Mat Peak Influence 295 | . 157 295 Initial 56 | . . 56 Average 117 | . 51 142 Maximum Alert Level 1 | . . 1 Low Security (%) 77 | 100 100 69 Level 1 22 | . . 30 Level 2 . | . . . Level 3 . | . . . Level 4 . | . . . Level 5 . | . . . High Security . | . . . Max Security . | . . . Squads Dispatched 1 | . . 1 Investigation . | . . . Extermination . | . . . Reinforcement 1 | . . 1 Assault . | . . . Garrison . | . . . Intercept . | . . . Searches Triggered . | . . . Construction Impeded . | . . . Haulers Reinforced . | . . . Active Scanning Responses . | . . . Cargo Convoy Interrupts . | . . . Stealth | -11 -10 -9 --------- Run | Yrd Mat Mat Distress Signals 2 | . 1 1 Communications Jammed . | . . . Distress Signals . | . . . Times Spotted 40 | . 8 32 Peak Tracking Total 7 | . 3 7 Tactical Retreats 1 | . . 1 Traps | -11 -10 -9 ------- Run | Yrd Mat Mat Traps Triggered 5 | . . 5 Indirectly . | . . . Trap Hack Attempts . | . . . Triggered . | . . . Disarmed . | . . . Reprogrammed . | . . . Reused . | . . . Traps Extracted . | . . . Installed . | . . . Triggered . | . . . Machines | -11 -10 -9 ---------- Run | Yrd Mat Mat Machines Disabled . | . . . Max in Single Turn . | . . . Machines Repaired . | . . . Machines Dismantled . | . . . Machines Sabotaged . | . . . Overloaded Fab Kills . | . . . Hacking | -11 -10 -9 --------- Run | Yrd Mat Mat Machines Accessed 1 | . . 1 Terminals 1 | . . 1 Fabricators . | . . . Repair Stations . | . . . Recycling Units . | . . . Scanalyzers . | . . . Garrison Access . | . . . Total Hacks 2 | . . 2 Successful . | . . . Failed 2 | . . 2 Catastrophic . | . . . Database Lockouts . | . . . Manual . | . . . Terminals 2 | . . 2 Fabricators . | . . . Repair Stations . | . . . Recycling Units . | . . . Scanalyzers . | . . . Garrison Access . | . . . Terminal Hacks . | . . . Fabricator Hacks . | . . . Repair Station Hacks . | . . . Recycling Unit Hacks . | . . . Scanalyzer . | . . . Garrison Access Hacks . | . . . Unauthorized Hacks . | . . . Terminals . | . . . Fabricators . | . . . Repair Stations . | . . . Recycling Units . | . . . Scanalyzers . | . . . Garrison Access . | . . . Data Cores Recovered . | . . . Used . | . . . Hacking Detections 1 | . . 1 Full Trace Events . | . . . Feedback Events . | . . . Feedback Blocked . | . . . Robot Schematics Acquired . | . . . Robots Built . | . . . Authchips . | . . . Time . | . . . Total Robot Build Rating . | . . . Part Schematics Acquired . | . . . Parts Built . | . . . Authchips . | . . . Time . | . . . Total Part Build Rating . | . . . Parts Repaired . | . . . Time . | . . . Parts Recycled . | . . . Recycled Matter . | . . . Retrieved Matter . | . . . Retrieved Components . | . . . Parts Scanalyzed . | . . . Part Schematics Acquired . | . . . Parts Damaged . | . . . Bothacking | -11 -10 -9 ------------ Run | Yrd Mat Mat Used RIF Installer . | . . . Robots Hacked . | . . . Non-combat . | . . . Combat . | . . . Robot Hacks Applied . | . . . Relay Couplers Released . | . . . Fabnet Peak Effective % . | . . . Robots Rewired . | . . . Allies Hacked . | . . . Hacks Repelled . | . . . Allies | -11 -10 -9 -------- Run | Yrd Mat Mat Total Allies . | . . . Largest Group . | . . . Highest-Rated Group . | . . . Highest-Rated Ally . | . . . Total Orders . | . . . Ally Attacks . | . . . Total Damage . | . . . Kills . | . . . Allies Corrupted . | . . . Allies Melted . | . . . Intel | -11 -10 -9 ------- Run | Yrd Mat Mat Robot Analysis Total . | . . . Derelict Logs Recovered . | . . . Drone Launches . | . . . Drone Recoveries . | . . . Exploration | -11 -10 -9 ------------- Run | Yrd Mat Mat Turns Passed 1203 | 2 329 872 Spaces Moved 631 | 2 194 435 Core 9 | . . 9 Treads 146 | . . 146 Legs 476 | 2 194 280 Wheels . | . . . Hover . | . . . Flight . | . . . Fastest Speed 120 | 120 120 120 Average Speed 148 | 120 146 150 Slowest Speed 350 | 120 190 350 Overloaded Moves . | . . . Propulsion Burnouts . | . . . Robots Hopped . | . . . Cave-ins Triggered . | . . . Exploration Rate (%) 27 | 2 36 43 Regions Visited 2 Branch Regions . Pre-discovered Areas . | . . . Known Exits Taken . | . . . Unknown Exits Taken 2 | 1 1 . Scrap Searched . | . . . Spaces Dug . | . . . Terrain Destroyed . | . . . Melee . | . . . Projectile . | . . . AOE . | . . . Terrain Rammed . | . . . Walls Destroyed . | . . . Machines Disabled . | . . . Actions | -11 -10 -9 --------- Run | Yrd Mat Mat Total 762 | 1 216 545 Wait 10 | . 1 9 Move 629 | 1 193 435 Hop . | . . . Pick Up 9 | . 5 4 Fast Attach 11 | . 2 9 Attach 2 | . . 2 Detach . | . . . Swap . | . . . Drop 7 | . 3 4 Fire 78 | . 11 67 Melee . | . . . Ram . | . . . Kick 16 | . 1 15 Crush . | . . . Escape Stasis . | . . . Rewire . | . . . Trap . | . . . Miscellaneous . | . . . Route ------- -11/Scrapyard -10/Materials (discovered 2 exits: *Mat x2) -9/Materials (discovered 2 exits: [*Mat] / [*Min]) History --------- Turn | Location | Event 1 | -11/Scrapyard | Discovered new exit (range 1) 3 | -11/Scrapyard | Entered Materials 69 | -10/Materials | Discovered new exit (range 14) 309 | -10/Materials | Build established: Mutant 321 | -10/Materials | Discovered new exit (range 8) 332 | -10/Materials | Entered another Materials area 332 | -9/Materials | Evolved 2 slots: Propulsion x2 559 | -9/Materials | Discovered new exit (range 5) 1118 | -9/Materials | Discovered new exit (range 16) 1175 | -9/Materials | Core integrity fell below 50% 1204 | -9/Materials | Self-destructed Last Messages --------------- 01182_ S-10 Pest destroyed. 01183_ Acquired 19 matter. 01184_ S-10 Pest destroyed. 01185_ Acquired 13 matter. 01186_ Acquired 1 matter. 01190_ Lgt. Assault Rifle destroyed. 01191_ Kicked S-10 Pest. 01192_ Kicked S-10 Pest out of the way. 01193_ Kicked S-10 Pest. 01195_ Lgt. Nuclear Core destroyed. 01196_ Kicked S-10 Pest. 01199_ R-06 Scavenger collects Lgt. Assault Rifle. 01199_ Kicked S-10 Pest. 01199_ Destroyed Flight Unit. 01199_ S-10 Pest system corrupted by crushing effect. 01200_ S-10 Pest system terminally corrupted. 01202_ R-06 Scavenger collects Corrupted Lgt. Ion Engine. Map ----- +----------------------------------------------------+ | ?????????????????????????????????????????????? | | ####?????????????????????????????????????????????? | | ?????????????????????????????????????????????????? | | ?????????????????????????????????????????????????? | | ?????????????????????????????????????????????????? | | ?????????????????????????????????????????????????? | | ?????????????????????????????????????????????????? | | ?????????????????????????????????????????????????? | | ?????????????????????????????????????????????????? | | ???????????????????????? ??????????????????????? | | ???????????????????????? ??????????????????????? | | ???????????????????????? ??????????????????????? | | ???????????????????????# #?????????????????????? | | ??????????????##########t t#?????????????????????? | | ?????????????? #?????????????????????? | | ?????????????# #?????????????????????? | | ?????????????+ #?????????????????????? | | ?????????????#k u #?????????????????????? | | ?????????????# #?????????????????????? | | ?????????????# k #?????????????????????? | | ?????????????# #?????????????????????? | | ?????????????+ #?????????????????????? | | ?????????????# ??????????????????????? | | ????????????## #### r#############??????????? | | ????????????# """# #* #??????????? | | ????????????# "# %@/%% """ ????????????? | | ????????????# |"# Ys#=%""""" ????????????? | | ????????????# < "?# %# """"" ??????????????? | | ###?????????# !?# # """""???????????????? | | #?????????# ??# # """????????????????? | | #?????????# "??# # ????????????????? | | #??????????# #### ########???????????????? | | ###########?# ################ ???? | | # ?# *%| ???? | | # # !!= ???? | | # # r ???? | | # # ######################+## ???? | | # # #??????????????????? | | # + "" "" ""??????????????????????? | | # # # ""S"" "???????????????????????? | | #####+####### """"??????????????????????????? | | ##??# #????##% ????????????????????????? | | ####%#######! ########+???????????????????????? | | % !* %% #???????????????????????????????? | | %=############ #???????????????????????????????? | | +##?????????## ##??????????????????????????????? | | #?????????# #######????????????????????????? | | #?????????# #????????????????????? | | #???? """ + [ +????????????????????? | | #?? # %] #????????????????????? | +----------------------------------------------------+ Best States ------------- Heat Dissipation 28 Energy Generation 14 Energy Capacity 250 Matter Stores 300 Matter Capacity 300 Sight Range 16 Terrain Scan Density 10 Armor Coverage 150 Resistance: KI 20 Resistance: TH 20 Resistance: EX 20 Resistance: EM 20 Resistance: I 20 Resistance: S 20 Resistance: P 20 Utility Shielding 33 Evasion (%) 55 Recoil Reduction 2 Offensive Hacking 10 Item Schematics ----------------- None Robot Schematics ------------------ None Fabricated ------------ Nothing Alien Tech Used ----------------- None Achievements -------------- None Challenges ------------ None Game ------ Seed ZhirovSpikedDetector Manual? 0 Play Time 00:12:38 Cumulative 58.9 hours Start 2024.05.27 @ 17:40:02 End 2024.05.27 @ 17:49:14 Sessions 1 Manual Loads 0 Difficulty Adventurer Special Mode None Game No. 77 Rogue 0 Adventurer 72 Explorer 5 Win Type - Total 1 Types 1/0/0/0/0/0/0/0/0 Lore% 31 Gallery% 47 Achievement% 37 Wizard Run 0 Options --------- Layout 1 ASCII 0 Keyboard 0 Movement Arrows Keybinds 0 Fullscreen 2 Font 24/Terminus Map View 50x35 Zoom Use 0% Tactical HUD 1 Map Filters NONE Filters NONE Steam 1 RUN: cd2ae761-8519-4083-8129-5abf07c2d896